fUST/lending_fUST_20250628
["ID","MTS","AMOUNT","RATE_DAILY","PERIOD"]
[368158963,1751041845343,-903.53,0.00019726,2]
[368158964,1751041845352,-460.0,0.00019726,2]
[368158966,1751041845361,-460.0,0.00019726,2]
[368158967,1751041845371,-460.0,0.00019726,2]
[368158968,1751041845380,-460.0,0.00019726,2]
[368158969,1751041845390,-460.0,0.00019726,2]
[368158970,1751041845399,-460.0,0.00019726,2]
[368158971,1751041845409,-460.0,0.00019726,2]
[368158972,1751041845419,-460.0,0.00019726,2]
[368158973,1751041845427,-1225.17,0.00019726,2]
[368158974,1751041845437,-500.0,0.00019726,2]
[368158975,1751041845447,-569.36,0.00019726,2]
[368158976,1751041845456,-460.0,0.00019726,2]
[368158977,1751041845466,-1020.01,0.00019726,2]
[368158978,1751041845475,-6192.55,0.00019726,2]
[368158979,1751041845485,-460.0,0.00019726,2]
[368158980,1751041845495,-318.79558611,0.00019726,2]
[368158981,1751041845504,-1268.68,0.00019726,2]
[368158982,1751041845514,-2137.7,0.00019726,2]
[368158983,1751041845524,-4324.61,0.00019726,2]
[368158984,1751041845533,-460.0,0.00019726,2]
[368158985,1751041845543,-462.63190724,0.00019726,2]
[368158986,1751041845552,-460.0,0.00019726,2]
[368158987,1751041845562,-569.25874012,0.00019726,2]
[368158988,1751041845572,-460.0,0.00019726,2]
[368158989,1751041845582,-460.0,0.00019726,2]
[368158990,1751041845591,-462.42787728,0.00019726,2]
[368158991,1751041845600,-460.0,0.00019726,2]
[368158992,1751041845610,-2831.97,0.00019726,2]
[368158993,1751041845619,-460.0,0.00019726,2]
[368158994,1751041845629,-1234.66,0.00019726,2]
[368158995,1751041845639,-543.7797676,0.00019726,2]
[368158996,1751041845648,-437.73291208,0.00019726,2]
[368158997,1751041845658,-460.0,0.00019726,2]
[368158998,1751041845667,-460.0,0.00019726,2]
[368158999,1751041845677,-460.0,0.00019726,2]
[368159000,1751041845686,-1701.89,0.00019726,2]
[368159001,1751041845695,-515.07,0.00019726,2]
[368159002,1751041845705,-515.53911097,0.00019726,2]
[368159003,1751041845716,-460.0,0.00019726,2]
[368159004,1751041845726,-531.47,0.00019726,2]
[368159005,1751041845735,-460.0,0.00019726,2]
[368159006,1751041845745,-460.0,0.00019726,2]
[368159007,1751041845754,-354.44033635,0.00019726,2]
[368159008,1751041845764,-1366.74,0.00019899,2]
[368159009,1751041845774,-500.0,0.00019899,2]
[368159010,1751041845783,-7992.37635771,0.000199,2]
[368159011,1751041845793,-1398.34757988,0.00019991,2]
[368159012,1751041845803,-1366.74,0.00019998,2]
[368159013,1751041845812,-500.0,0.00019998,2]
[368159014,1751041845823,-444.25031917,0.00019999,2]
[368159016,1751041845832,-460.0,0.00019999,2]
[368159018,1751041845841,-460.0,0.00019999,2]
[368159019,1751041845851,-152.07341766,0.00019999,2]
[368159020,1751041845860,-460.0,0.00019999,2]
[368159021,1751041845870,-384.67417044,0.00019999,2]
[368159022,1751041845879,-354.84568991,0.00019999,2]
[368159023,1751041845888,-461.19096883,0.00019999,2]
[368159024,1751041845898,-460.0,0.00019999,2]
[368159025,1751041845907,-460.0,0.00019999,2]
[368159026,1751041845916,-278.56577656,0.00019999,2]
[368159027,1751041845926,-460.0,0.00019999,2]
[368159028,1751041845935,-460.0,0.00019999,2]
[368159029,1751041845945,-460.0,0.00019999,2]
[368159030,1751041845954,-460.0,0.00019999,2]
[368159031,1751041845963,-460.0,0.00019999,2]
[368159032,1751041845973,-460.86245214,0.00019999,2]
[368159033,1751041845983,-460.0,0.00019999,2]
[368159034,1751041845992,-460.0,0.00019999,2]
[368159035,1751041846002,-308.02663832,0.00019999,2]
[368159036,1751041846011,-460.0,0.00019999,2]
[368159037,1751041846020,-460.0,0.00019999,2]
[368159038,1751041846030,-460.0,0.00019999,2]
[368159039,1751041846039,-460.0,0.00019999,2]
[368159040,1751041846048,-460.0,0.00019999,2]
[368159041,1751041846057,-460.0,0.00019999,2]
[368159042,1751041846067,-460.0,0.00019999,2]
[368159043,1751041846078,-460.0,0.00019999,2]
[368159044,1751041846087,-460.0,0.00019999,2]
[368159045,1751041846096,-460.0,0.00019999,2]
[368159046,1751041846105,-460.0,0.00019999,2]
[368159047,1751041846114,-460.0,0.00019999,2]
[368159048,1751041846123,-460.0,0.00019999,2]
[368159049,1751041846132,-193.79483527,0.00019999,2]
[368159050,1751041846141,-460.0,0.00019999,2]
[368159051,1751041846151,-460.0,0.00019999,2]
[368159052,1751041846160,-460.0,0.00019999,2]
[368159053,1751041846173,-471.85362121,0.00019999,2]
[368159054,1751041846182,-460.0,0.00019999,2]
[368159055,1751041846191,-460.0,0.00019999,2]
[368159056,1751041846337,-460.0,0.00019999,2]
[368159057,1751041846346,-430.0,0.00019999,2]
[368159058,1751041846356,-460.0,0.00019999,2]
[368159059,1751041846365,-594.63,0.00019999,2]
[368159060,1751041846375,-460.0,0.00019999,2]
[368159061,1751041846384,-460.0,0.00019999,2]
[368159062,1751041846393,-460.0,0.00019999,2]
[368159063,1751041846402,-460.0,0.00019999,2]
[368159064,1751041846411,-460.0,0.00019999,2]
[368159065,1751041846420,-1366.74,0.00019999,2]
[368159066,1751041846430,-1366.74,0.00019999,2]
[368159067,1751041846439,-500.0,0.00019999,2]
[368159068,1751041846448,-516.57057772,0.00019999,2]
[368159069,1751041846458,-1842.66387192,0.00019999,2]
[368159070,1751041846467,-9366.80849174,0.0002,2]
[368159071,1751041846477,-460.0,0.0002,2]
[368159072,1751041846486,-460.0,0.0002,2]
[368159073,1751041846495,-460.0,0.0002,2]
[368159074,1751041846504,-460.0,0.0002,2]
[368159075,1751041846513,-460.0,0.0002,2]
[368159076,1751041846522,-460.0,0.0002,2]
[368159077,1751041846531,-346.12,0.0002,2]
[368159078,1751041846541,-460.0,0.0002,2]
[368159079,1751041846550,-460.0,0.0002,2]
[368159080,1751041846559,-460.0,0.0002,2]
[368159081,1751041846569,-207.81477606,0.0002,2]
[368159082,1751041846578,-460.0,0.0002,2]
[368159083,1751041846588,-589.65,0.0002,2]
[368159084,1751041846598,-460.0,0.0002,2]
[368159085,1751041846607,-460.0,0.0002,2]
[368159086,1751041846617,-520.28605357,0.0002,2]
[368159087,1751041846627,-460.0,0.0002,2]
[368159088,1751041846637,-460.0,0.0002,2]
[368159089,1751041846646,-460.0,0.0002,2]
[368159090,1751041846656,-684.79,0.0002,2]
[368159091,1751041846666,-460.0,0.0002,2]
[368159092,1751041846675,-460.0,0.0002,2]
[368159093,1751041846684,-555.16,0.0002,2]
[368159094,1751041846694,-460.0,0.0002,2]
[368159095,1751041846703,-460.0,0.0002,2]
[368159096,1751041846713,-460.0,0.0002,2]
[368159097,1751041846724,-277.29497897,0.0002,2]
[368159098,1751041846733,-460.0,0.0002,2]
[368159099,1751041846743,-460.0,0.0002,2]
[368159100,1751041846752,-460.0,0.0002,2]
[368159101,1751041846762,-460.0,0.0002,2]
[368159102,1751041846772,-521.19468451,0.0002,2]
[368159103,1751041846782,-460.0,0.0002,2]
[368159104,1751041846791,-460.0,0.0002,2]
[368159105,1751041846801,-558.75,0.0002,2]
[368159106,1751041846810,-460.0,0.0002,2]
[368159107,1751041846820,-602.32,0.0002,2]
[368159108,1751041846830,-460.0,0.0002,2]
[368159109,1751041846839,-460.0,0.0002,2]
[368159110,1751041846848,-460.0,0.0002,2]
[368159111,1751041846858,-460.0,0.0002,2]
[368159112,1751041846867,-460.0,0.0002,2]
[368159113,1751041846876,-460.0,0.0002,2]
[368159114,1751041846886,-219.85418213,0.0002,2]
[368159115,1751041846894,-460.0,0.0002,2]
[368159116,1751041846904,-460.0,0.0002,2]
[368159117,1751041846913,-365.1,0.0002,2]
[368159118,1751041846922,-3458.57,0.0002,2]
[368159119,1751041846932,-460.0,0.0002,2]
[368159120,1751041846941,-598.75925412,0.0002,2]
[368159121,1751041846951,-460.0,0.0002,2]
[368159122,1751041846960,-3599.12,0.0002,2]
[368159123,1751041846970,-460.0,0.0002,2]
[368159124,1751041846980,-213.33,0.0002,2]
[368159125,1751041846989,-460.0,0.0002,2]
[368159126,1751041846999,-1165.57,0.0002,2]
[368159127,1751041847009,-460.0,0.0002,2]
[368159128,1751041847018,-489.27,0.0002,2]
[368159129,1751041847027,-1581.79,0.0002,2]
[368159130,1751041847037,-460.0,0.0002,2]
[368159131,1751041847046,-504.88,0.0002,2]
[368159132,1751041847056,-460.0,0.0002,2]
[368159133,1751041847065,-460.0,0.0002,2]
[368159134,1751041847075,-460.0,0.0002,2]
[368159135,1751041847085,-1032.13,0.0002,2]
[368159136,1751041847094,-1913.21,0.0002,2]
[368159137,1751041847103,-293.0881946,0.0002,2]
[368159138,1751041847113,-460.0,0.0002,2]
[368159139,1751041847122,-460.0,0.0002,2]
[368159140,1751041847132,-1317.4,0.0002,2]
[368159141,1751041847142,-1183.57,0.0002,2]
[368159142,1751041847151,-460.0,0.0002,2]
[368159143,1751041847161,-460.0,0.0002,2]
[368159144,1751041847173,-460.0,0.0002,2]
[368159145,1751041847182,-791.9,0.0002,2]
[368159146,1751041847192,-460.0,0.0002,2]
[368159147,1751041847201,-460.0,0.0002,2]
[368159148,1751041847210,-460.0,0.0002,2]
[368159149,1751041847222,-460.0,0.0002,2]
[368159150,1751041847232,-460.0,0.0002,2]
[368159151,1751041847243,-460.0,0.0002,2]
[368159152,1751041847253,-460.0,0.0002,2]
[368159153,1751041847262,-460.0,0.0002,2]
[368159154,1751041847272,-460.0,0.0002,2]
[368159155,1751041847282,-460.0,0.0002,2]
[368159156,1751041847291,-253.11,0.0002,2]
[368159157,1751041847300,-460.0,0.0002,2]
[368159158,1751041847310,-460.0,0.0002,2]
[368159159,1751041847320,-460.0,0.0002,2]
[368159160,1751041847329,-460.0,0.0002,2]
[368159161,1751041847339,-460.0,0.0002,2]
[368159162,1751041847350,-665.4,0.0002,2]
[368159163,1751041847359,-1541.92,0.0002,2]
[368159164,1751041847368,-460.0,0.0002,2]
[368159165,1751041847377,-460.0,0.0002,2]
[368159166,1751041847387,-460.0,0.0002,2]
[368159167,1751041847396,-460.0,0.0002,2]
[368159168,1751041847406,-639.55,0.0002,2]
[368159169,1751041847415,-1016.08,0.0002,2]
[368159170,1751041847426,-460.0,0.0002,2]
[368159171,1751041847435,-460.0,0.0002,2]
[368159172,1751041847445,-569.45,0.0002,2]
[368159173,1751041847454,-460.0,0.0002,2]
[368159174,1751041847463,-460.0,0.0002,2]
[368159175,1751041847473,-460.0,0.0002,2]
[368159176,1751041847482,-460.0,0.0002,2]
[368159177,1751041847492,-604.13400417,0.0002,2]
[368159178,1751041847501,-460.0,0.0002,2]
[368159179,1751041847510,-460.0,0.0002,2]
[368159180,1751041847520,-513.78,0.0002,2]
[368159181,1751041847530,-740.53,0.0002,2]
[368159182,1751041847539,-2643.49,0.0002,2]
[368159183,1751041847549,-2202.94,0.0002,2]
[368159184,1751041847559,-460.0,0.0002,2]
[368159185,1751041847568,-1346.61,0.0002,2]
[368159186,1751041847578,-591.74,0.0002,2]
[368159187,1751041847587,-460.0,0.0002,2]
[368159188,1751041847596,-460.0,0.0002,2]
[368159189,1751041847606,-779.61,0.0002,2]
[368159190,1751041847615,-903.53,0.0002,2]
[368159191,1751041847625,-460.0,0.0002,2]
[368159192,1751041847634,-460.0,0.0002,2]
[368159193,1751041847643,-369.68938424,0.0002,2]
[368159194,1751041847653,-460.0,0.0002,2]
[368159195,1751041847662,-460.0,0.0002,2]
[368159196,1751041847672,-460.0,0.0002,2]
[368159197,1751041847681,-465.93396944,0.0002,2]
[368159198,1751041847690,-460.0,0.0002,2]
[368159199,1751041847700,-1225.17,0.0002,2]
[368159200,1751041847710,-569.36,0.0002,2]
[368159201,1751041847720,-460.0,0.0002,2]
[368159202,1751041847732,-1020.01,0.0002,2]
[368159203,1751041847742,-6192.55,0.0002,2]
[368159204,1751041847753,-460.0,0.0002,2]
[368159205,1751041847763,-1268.68,0.0002,2]
[368159206,1751041847772,-2137.7,0.0002,2]
[368159207,1751041847782,-4324.61,0.0002,2]
[368159208,1751041847791,-460.0,0.0002,2]
[368159209,1751041847800,-460.0,0.0002,2]
[368159210,1751041847809,-460.0,0.0002,2]
[368159211,1751041847818,-348.63561752,0.0002,2]
[368159212,1751041847828,-460.0,0.0002,2]
[368159213,1751041847838,-2831.97,0.0002,2]
[368159214,1751041847924,-460.0,0.0002,2]
[368159215,1751041847934,-1234.66,0.0002,2]
[368159216,1751041847943,-460.0,0.0002,2]
[368159217,1751041847952,-215.13,0.0002,2]
[368159218,1751041847962,-562.1841777,0.0002,2]
[368159219,1751041847971,-1701.89,0.0002,2]
[368159220,1751041847981,-515.07,0.0002,2]
[368159221,1751041847990,-460.0,0.0002,2]
[368159222,1751041847999,-460.0,0.0002,2]
[368159223,1751041848009,-500.0,0.0002002,2]
[368159224,1751041848019,-453.20022986,0.0002002,2]
[368159225,1751041848028,-441.16495049,0.00020021,2]
[368159226,1751041848039,-1030.15422969,0.00020021,2]
[368159227,1751041848048,-1000.0,0.00020021,2]
[368159228,1751041848058,-151.0,0.000201,3]
[368159229,1751041848068,-7992.37635758,0.00020107,2]
[368159230,1751041848079,-501.28082104,0.0002013,2]
[368159231,1751041848090,-1000.0,0.00020183,2]
[368159232,1751041848103,-151.0,0.000202,3]
[368159233,1751041848114,-737.1531339,0.00020258,2]
[368159234,1751041848123,-500.0,0.00020268,2]
[368159235,1751041848132,-500.0,0.00020268,2]
[368159236,1751041848142,-966.7696,0.00020268,2]
[368159237,1751041848152,-1500.0,0.00020268,2]
[368159238,1751041848162,-1366.74,0.00020272,2]
[368159239,1751041848175,-1366.74,0.00020272,2]
[368159240,1751041848184,-1366.74,0.00020272,2]
[368159241,1751041848194,-410.59999046,0.00020273,2]
[368159242,1751041848204,-260.378938,0.00020273,2]
[368159243,1751041848215,-460.0,0.00020273,2]
[368159244,1751041848225,-350.03575019,0.00020273,2]
[368159245,1751041848235,-460.0,0.00020273,2]
[368159246,1751041848244,-460.0,0.00020273,2]
[368159247,1751041848255,-460.0,0.00020273,2]
[368159248,1751041848266,-460.0,0.00020273,2]
[368159249,1751041848276,-460.0,0.00020273,2]
[368159250,1751041848287,-460.0,0.00020273,2]
[368159251,1751041848296,-460.0,0.00020273,2]
[368159252,1751041848306,-589.65,0.00020273,2]
[368159253,1751041848316,-460.0,0.00020273,2]
[368159254,1751041848326,-460.0,0.00020273,2]
[368159255,1751041848336,-350.44,0.00020273,2]
[368159256,1751041848345,-684.79,0.00020273,2]
[368159257,1751041848355,-556.84,0.00020273,2]
[368159258,1751041848365,-460.0,0.00020273,2]
[368159259,1751041848375,-555.16,0.00020273,2]
[368159260,1751041848385,-460.0,0.00020273,2]
[368159261,1751041848395,-460.0,0.00020273,2]
[368159262,1751041848404,-460.0,0.00020273,2]
[368159263,1751041848414,-373.95274124,0.00020273,2]
[368159264,1751041848423,-460.0,0.00020273,2]
[368159265,1751041848432,-460.0,0.00020273,2]
[368159266,1751041848442,-460.0,0.00020273,2]
[368159267,1751041848452,-602.32,0.00020273,2]
[368159268,1751041848462,-460.0,0.00020273,2]
[368159269,1751041848471,-460.0,0.00020273,2]
[368159270,1751041848482,-460.0,0.00020273,2]
[368159271,1751041848491,-460.0,0.00020273,2]
[368159272,1751041848501,-460.0,0.00020273,2]
[368159273,1751041848511,-460.0,0.00020273,2]
[368159274,1751041848521,-3458.57,0.00020273,2]
[368159275,1751041848532,-460.0,0.00020273,2]
[368159276,1751041848542,-460.0,0.00020273,2]
[368159277,1751041848552,-460.0,0.00020273,2]
[368159278,1751041848562,-3599.12,0.00020273,2]
[368159279,1751041848572,-460.0,0.00020273,2]
[368159280,1751041848583,-1165.57,0.00020273,2]
[368159281,1751041848592,-460.0,0.00020273,2]
[368159282,1751041848603,-489.27,0.00020273,2]
[368159283,1751041848613,-1581.79,0.00020273,2]
[368159284,1751041848622,-504.88,0.00020273,2]
[368159285,1751041848632,-460.0,0.00020273,2]
[368159286,1751041848642,-460.0,0.00020273,2]
[368159287,1751041848652,-311.4,0.00020273,2]
[368159288,1751041848662,-1032.13,0.00020273,2]
[368159289,1751041848671,-1913.21,0.00020273,2]
[368159290,1751041848681,-460.0,0.00020273,2]
[368159291,1751041848691,-1317.4,0.00020273,2]
[368159292,1751041848701,-1183.57,0.00020273,2]
[368159293,1751041848711,-460.0,0.00020273,2]
[368159294,1751041848720,-460.0,0.00020273,2]
[368159295,1751041848730,-460.0,0.00020273,2]
[368159296,1751041848740,-791.9,0.00020273,2]
[368159297,1751041848750,-460.0,0.00020273,2]
[368159298,1751041848759,-460.0,0.00020273,2]
[368159299,1751041848769,-460.0,0.00020273,2]
[368159300,1751041848779,-460.0,0.00020273,2]
[368159301,1751041848789,-460.0,0.00020273,2]
[368159302,1751041848799,-460.0,0.00020273,2]
[368159303,1751041848809,-460.0,0.00020273,2]
[368159304,1751041848819,-460.0,0.00020273,2]
[368159305,1751041848829,-460.0,0.00020273,2]
[368159306,1751041848839,-460.0,0.00020273,2]
[368159307,1751041848848,-460.0,0.00020273,2]
[368159308,1751041848858,-460.0,0.00020273,2]
[368159309,1751041848868,-665.4,0.00020273,2]
[368159310,1751041848877,-1541.92,0.00020273,2]
[368159311,1751041848887,-460.0,0.00020273,2]
[368159312,1751041848896,-460.0,0.00020273,2]
[368159313,1751041848906,-460.0,0.00020273,2]
[368159314,1751041848915,-460.0,0.00020273,2]
[368159315,1751041848924,-639.55,0.00020273,2]
[368159316,1751041848934,-1016.08,0.00020273,2]
[368159317,1751041848944,-460.0,0.00020273,2]
[368159318,1751041848954,-569.45,0.00020273,2]
[368159319,1751041848964,-460.0,0.00020273,2]
[368159320,1751041848974,-460.0,0.00020273,2]
[368159321,1751041848983,-460.0,0.00020273,2]
[368159322,1751041848993,-460.0,0.00020273,2]
[368159323,1751041849002,-460.0,0.00020273,2]
[368159324,1751041849012,-513.78,0.00020273,2]
[368159325,1751041849021,-740.53,0.00020273,2]
[368159326,1751041849030,-2643.49,0.00020273,2]
[368159327,1751041849040,-2202.94,0.00020273,2]
[368159328,1751041849049,-1346.61,0.00020273,2]
[368159329,1751041849059,-591.74,0.00020273,2]
[368159330,1751041849069,-460.0,0.00020273,2]
[368159331,1751041849079,-435.51,0.00020273,2]
[368159332,1751041849089,-779.61,0.00020273,2]
[368159333,1751041849098,-903.53,0.00020273,2]
[368159334,1751041849108,-460.0,0.00020273,2]
[368159335,1751041849117,-460.0,0.00020273,2]
[368159336,1751041849127,-271.36269037,0.00020273,2]
[368159337,1751041849136,-460.0,0.00020273,2]
[368159338,1751041849146,-1225.17,0.00020273,2]
[368159339,1751041849156,-569.36,0.00020273,2]
[368159340,1751041849166,-460.0,0.00020273,2]
[368159341,1751041849180,-1020.01,0.00020273,2]
[368159342,1751041849189,-6192.55,0.00020273,2]
[368159343,1751041849199,-460.0,0.00020273,2]
[368159344,1751041849209,-1268.68,0.00020273,2]
[368159345,1751041849218,-2137.7,0.00020273,2]
[368159346,1751041849228,-4324.61,0.00020273,2]
[368159347,1751041849237,-460.0,0.00020273,2]
[368159348,1751041849247,-460.0,0.00020273,2]
[368159349,1751041849258,-460.0,0.00020273,2]
[368159350,1751041849268,-2831.97,0.00020273,2]
[368159351,1751041849278,-1234.66,0.00020273,2]
[368159352,1751041849287,-460.0,0.00020273,2]
[368159353,1751041849296,-1701.89,0.00020273,2]
[368159354,1751041849305,-515.07,0.00020273,2]
[368159355,1751041849315,-210.87,0.00020273,2]
[368159356,1751041849324,-460.0,0.00020273,2]
[368159357,1751041849334,-7992.37635758,0.00020314,3]
[368159358,1751041849343,-420.0,0.00020344,2]
[368159359,1751041849434,-151.0,0.000204,3]
[368159360,1751041849444,-151.0,0.000205,4]
[368159361,1751041849454,-1366.74,0.0002052,2]
[368159362,1751041849463,-1366.74,0.0002052,2]
[368159363,1751041849472,-1366.74,0.0002052,2]
[368159364,1751041849482,-1366.74,0.0002052,2]
[368159365,1751041849491,-1366.79325486,0.0002052,2]
[368159366,1751041849500,-160.0,0.00020521,3]
[368159367,1751041849509,-847.04181546,0.00020521,3]
[368159368,1751041849518,-7992.37635758,0.00020521,3]
[368159369,1751041849527,-12562.41216491,0.00020521,3]
[368159370,1751041849536,-323.76,0.00020538,3]
[368159371,1751041849546,-460.0,0.00020547,2]
[368159372,1751041849555,-460.0,0.00020547,2]
[368159373,1751041849564,-460.0,0.00020547,2]
[368159374,1751041849574,-460.0,0.00020547,2]
[368159375,1751041849583,-503.68523712,0.00020547,2]
[368159376,1751041849593,-589.65,0.00020547,2]
[368159377,1751041849603,-404.49952035,0.00020547,2]
[368159378,1751041849612,-684.79,0.00020547,2]
[368159379,1751041849622,-460.0,0.00020547,2]
[368159380,1751041849632,-555.16,0.00020547,2]
[368159381,1751041849641,-460.0,0.00020547,2]
[368159382,1751041849650,-460.0,0.00020547,2]
[368159383,1751041849660,-460.0,0.00020547,2]
[368159384,1751041849669,-460.0,0.00020547,2]
[368159385,1751041849678,-192.88976356,0.00020547,2]
[368159386,1751041849688,-460.0,0.00020547,2]
[368159387,1751041849698,-602.32,0.00020547,2]
[368159388,1751041849707,-460.0,0.00020547,2]
[368159389,1751041849718,-460.0,0.00020547,2]
[368159390,1751041849728,-460.0,0.00020547,2]
[368159391,1751041849737,-460.0,0.00020547,2]
[368159392,1751041849746,-460.0,0.00020547,2]
[368159393,1751041849756,-460.0,0.00020547,2]
[368159394,1751041849765,-3458.57,0.00020547,2]
[368159395,1751041849775,-460.0,0.00020547,2]
[368159396,1751041849785,-460.0,0.00020547,2]
[368159397,1751041849794,-307.36463364,0.00020547,2]
[368159398,1751041849804,-3599.12,0.00020547,2]
[368159399,1751041849813,-1165.57,0.00020547,2]
[368159400,1751041849822,-460.0,0.00020547,2]
[368159401,1751041849832,-489.27,0.00020547,2]
[368159402,1751041849841,-1581.79,0.00020547,2]
[368159403,1751041849851,-504.88,0.00020547,2]
[368159404,1751041849860,-460.0,0.00020547,2]
[368159405,1751041849869,-1032.13,0.00020547,2]
[368159406,1751041849880,-1913.21,0.00020547,2]
[368159407,1751041849890,-460.0,0.00020547,2]
[368159408,1751041849900,-1317.4,0.00020547,2]
[368159409,1751041849909,-1183.57,0.00020547,2]
[368159410,1751041849918,-460.0,0.00020547,2]
[368159411,1751041849927,-460.0,0.00020547,2]
[368159412,1751041849936,-791.9,0.00020547,2]
[368159413,1751041849946,-460.0,0.00020547,2]
[368159414,1751041849955,-460.0,0.00020547,2]
[368159415,1751041849965,-460.0,0.00020547,2]
[368159416,1751041849974,-460.0,0.00020547,2]
[368159417,1751041849983,-460.0,0.00020547,2]
[368159418,1751041849992,-460.0,0.00020547,2]
[368159419,1751041850002,-460.0,0.00020547,2]
[368159420,1751041850011,-460.0,0.00020547,2]
[368159421,1751041850021,-460.0,0.00020547,2]
[368159422,1751041850030,-460.0,0.00020547,2]
[368159423,1751041850039,-460.0,0.00020547,2]
[368159424,1751041850049,-460.0,0.00020547,2]
[368159425,1751041850058,-665.4,0.00020547,2]
[368159426,1751041850068,-1541.92,0.00020547,2]
[368159427,1751041850078,-460.0,0.00020547,2]
[368159428,1751041850087,-460.0,0.00020547,2]
[368159429,1751041850097,-460.0,0.00020547,2]
[368159430,1751041850108,-639.55,0.00020547,2]
[368159431,1751041850117,-1016.08,0.00020547,2]
[368159432,1751041850127,-460.0,0.00020547,2]
[368159433,1751041850136,-569.45,0.00020547,2]
[368159434,1751041850145,-230.0,0.00020547,2]
[368159435,1751041850155,-460.0,0.00020547,2]
[368159436,1751041850165,-460.0,0.00020547,2]
[368159437,1751041850175,-460.0,0.00020547,2]
[368159438,1751041850184,-460.0,0.00020547,2]
[368159439,1751041850194,-513.78,0.00020547,2]
[368159440,1751041850204,-740.53,0.00020547,2]
[368159441,1751041850213,-2643.49,0.00020547,2]
[368159442,1751041850225,-2202.94,0.00020547,2]
[368159443,1751041850235,-1346.61,0.00020547,2]
[368159444,1751041850245,-591.74,0.00020547,2]
[368159445,1751041850255,-460.0,0.00020547,2]
[368159446,1751041850266,-779.61,0.00020547,2]
[368159447,1751041850275,-903.53,0.00020547,2]
[368159448,1751041850284,-460.0,0.00020547,2]
[368159449,1751041850294,-460.0,0.00020547,2]
[368159450,1751041850303,-460.0,0.00020547,2]
[368159451,1751041850313,-1225.17,0.00020547,2]
[368159452,1751041850323,-569.36,0.00020547,2]
[368159453,1751041850333,-460.0,0.00020547,2]
[368159454,1751041850343,-1020.01,0.00020547,2]
[368159455,1751041850353,-6192.55,0.00020547,2]
[368159456,1751041850363,-460.0,0.00020547,2]
[368159457,1751041850372,-1268.68,0.00020547,2]
[368159458,1751041850383,-4324.61,0.00020547,2]
[368159459,1751041850394,-2137.7,0.00020547,2]
[368159460,1751041850404,-460.0,0.00020547,2]
[368159461,1751041850414,-460.0,0.00020547,2]
[368159462,1751041850424,-2831.97,0.00020547,2]
[368159463,1751041850433,-1234.66,0.00020547,2]
[368159464,1751041850443,-169.23,0.00020547,2]
[368159465,1751041850453,-1701.89,0.00020547,2]